Cogmind - Beta 17.1 @@@ ROGUE MODE // 2026.08.26 @ 13:23:51 // Winter2019/RPGLIKE Player: Gallgagger Result: Self-destructed Performance ------------- Evolutions (5) 2500 Regions Visited (7) 1400 Robots Destroyed (25) 125 Value Destroyed (876) 876 Prototype IDs (21) 420 Alien Tech Used (0) 0 Bonus (11819) 11819 TOTAL SCORE: 17140 Bonus ------- Follower Combat Kills 602 Prayed to X0-1V1 5000 Major X0-1V1 Interference 6050 Registered with UFD 300 Friendly Fire -133 Cogmind --------- Core Integrity 904/2000 Matter 290/900 Energy 1278/1280 System Corruption 0% Temperature Cool (0) Movement Flying (55) Location -5/Factory Parts ------- > --- POWER (2) -------- Cooled Ion Engine (fused) > --- PROPULSION (3) --- Makeshift Flight Unit (fused) > --- UTILITY (4) ------ Signal Interpreter Transport Network Coupler X0-1V1's Piety Tracker > --- WEAPON (3) ------- Makeshift Laser (fused) Power Maul (fused) Spear > --- INVENTORY (2) ---- Protomatter-40 Spear Peak State ------------ > --- POWER ------------ Cooled Ion Engine > --- PROPULSION ------- Makeshift Flight Unit > --- UTILITY ---------- Signal Interpreter Transport Network Coupler Precision Energy Filter X0-1V1's Piety Tracker > --- WEAPON ----------- Makeshift Laser Power Maul Spear > --- INVENTORY -------- Protomatter Spear [Rating: 41] Favorites ----------- Power Cooled Ion Engine Engine Cooled Ion Engine Propulsion Wheel Wheel Wheel Flight Unit Makeshift Flight Unit Utility Signal Interpreter Device X0-1V1's Piety Tracker Processor Signal Interpreter Weapon Makeshift Laser Energy Gun Makeshift Laser Ballistic Gun Barrage Gun Impact Weapon Power Maul Piercing Weapon Spear Build | -11 -10 -10 -8 -8 -6 -6 -5 ------- Run | Yrd Mat Sub Rec Scr Fac Ext Fac Slots Evolved 8 | 4 2 2 . . . . . Power 1 | 1 . . . . . . . Propulsion 1 | 1 . . . . . . . Utility 3 | 1 2 . . . . . . Weapon 3 | 1 . 2 . . . . . Parts Attached 19 | 6 4 6 1 1 . . 1 Power 2 | 2 . . . . . . . Engine 2 | 2 . . . . . . . Core . | . . . . . . . . Reactor . | . . . . . . . . Propulsion 4 | 2 . 2 . . . . . Treads . | . . . . . . . . Leg . | . . . . . . . . Wheel 2 | 2 . . . . . . . Hover . | . . . . . . . . Flight 2 | . . 2 . . . . . Utility 6 | . 3 1 . 1 . . 1 Device 4 | . 2 1 . . . . 1 Storage . | . . . . . . . . Processor 2 | . 1 . . 1 . . . Hackware . | . . . . . . . . Protection . | . . . . . . . . Artifact . | . . . . . . . . Weapon 7 | 2 1 3 1 . . . . Energy Gun 2 | 1 . 1 . . . . . Energy Cannon . | . . . . . . . . Ballistic Gun 3 | 1 1 1 . . . . . Ballistic Cannon . | . . . . . . . . Launcher . | . . . . . . . . Special Weapon . | . . . . . . . . Impact Weapon 2 | . . 1 1 . . . . Slashing Weapon . | . . . . . . . . Piercing Weapon . | . . . . . . . . Special Melee Weapon . | . . . . . . . . Unidentified Prototypes 3 | . 1 1 . . . . 1 Parts Lost 2 | . . . . . 2 . . Power . | . . . . . . . . Propulsion 2 | . . . . . 2 . . Utility . | . . . . . . . . Weapon . | . . . . . . . . Highest Loss Streak 1 | . . . . . 1 . . To Critical Strikes . | . . . . . . . . Average Backups . | . . . . . . 1 1 Power . | . . . . . . . . Propulsion . | . . . . . . . . Utility . | . . . . . . . . Weapon . | . . . . . . 1 1 Tool/Special . | . . . . . . . . Unused Backups 12 | . . 10 1 . . . 1 Power . | . . . . . . . . Propulsion 3 | . . 3 . . . . . Utility . | . . . . . . . . Weapon 9 | . . 7 1 . . . 1 Tool/Special . | . . . . . . . . Average Slot Usage (%) 77 | . 68 77 91 87 75 66 66 Engine 9 | . 11 9 8 8 8 8 8 Wheel 13 | . 24 15 8 8 3 . . Flight 8 | . . 5 16 16 13 8 8 Device 14 | . . 21 25 15 8 8 8 Processor 10 | . 5 9 8 12 16 16 16 Energy Gun 4 | . 1 2 8 8 8 8 8 Ballistic Gun 8 | . 23 3 8 8 5 . . Impact Weapon 6 | . . 9 8 8 8 8 8 Peak Build Rating 41 | 5 30 38 39 39 35 34 41 Average Rating 26 | 3 5 28 38 36 33 34 34 On Entrance 26 | . 5 30 38 39 35 34 34 Avg Prop Armor Cover (%) 10 | 14 12 13 5 5 6 . . Naked Turns . | . . . . . . . . Heaviest Build 20 | 6 9 20 20 20 17 16 16 Greatest Support 25 | 25 13 22 22 22 22 18 18 Greatest Overweight (x) 1 | . 1 1 . . . . . Average Overweight (x) . | . . . . . . . . Largest Inventory Capacity 2 | 1 1 1 1 2 2 2 2 Average Capacity 1 | . 1 1 1 1 2 2 2 Most Carried 2 | 1 1 1 1 2 2 2 2 Average Carried . | . 1 . . . 2 2 2 Final Capacity 2 | 1 1 1 1 2 2 2 2 Final Carried 2 | 1 1 1 . 2 2 2 2 Transmogrified Parts 3 | . . 3 . . . . . Integrity Recovered 59 | . . 59 . . . . . Class Distribution -------------------- 78% | Mutant 16% | Commander-Mutant 4% | Gladiator Dominant Class ---------------- Mutant | -10/Materials Mutant | -10/Subcaves Commander-Mutant | -8/Recycling Commander-Mutant | -8/Scraptown Mutant | -6/Factory Gladiator | -6/Extension Gladiator | -5/Factory Resources | -11 -10 -10 -8 -8 -6 -6 -5 ----------- Run | Yrd Mat Sub Rec Scr Fac Ext Fac Matter Collected 1202 | 260 185 499 . 258 . . . Remotely . | . . . . . . . . Salvage Created 1020 | . 391 128 . 501 . . . Parts 60 | . 26 4 . 30 . . . Haulers Intercepted . | . . . . . . . . Recyclers Shooed 1 | . 1 . . . . . . Parts Field Recycled . | . . . . . . . . Retrieved Matter . | . . . . . . . . Parts Self-Destructed 12 | . . 12 . . . . . Prevented . | . . . . . . . . Parts Restored . | . . . . . . . . Kills | -11 -10 -10 -8 -8 -6 -6 -5 ------- Run | Yrd Mat Sub Rec Scr Fac Ext Fac Combat Hostiles Destroyed 23 | . 12 1 . 10 . . . Guns 20 | . 10 . . 10 . . . AOE 2 | . 2 . . . . . . Classes Destroyed 8 | . 4 1 . 3 . . . Recycler 1 | . 1 . . . . . . Turret 1 | . . 1 . . . . . Swarmer 4 | . 3 1 . . . . . Grunt 6 | . 6 . . . . . . Subdweller 3 | . 3 . . . . . . Explorer 1 | . . . . 1 . . . Scrapper 7 | . . . . 7 . . . Elite 1 | . . . . 1 . . . Best Kill Streak 6 | . 6 1 . 3 . . . Combat Bots Only 5 | . 5 1 . 3 . . . Max Kills in Single Turn 2 | . 2 1 . 1 . . . Gunslinging . | . . . . . . . . Exploded 1 | . 1 . . . . . . Melee . | . . . . . . . . Uniques/NPCs Destroyed 1 | . . . . 1 . . . Triborg (-8/Scraptown) Combat | -11 -10 -10 -8 -8 -6 -6 -5 -------- Run | Yrd Mat Sub Rec Scr Fac Ext Fac Hostile Shots Fired 337 | . 57 73 . 37 94 63 13 Missed 137 | . 11 31 . 10 48 32 5 Hits 200 | . 46 42 . 27 46 31 8 Projectile 200 | . 46 42 . 27 46 31 8 Critical Strikes 9 | . 3 . . 4 2 . . Damage Taken 3255 | . 702 497 . 600 855 445 156 Core 2729 | . 573 409 . 499 730 375 143 Absorbed by Shields 11 | . . . . 11 . . . Redirected to Core 1809 | . 446 278 . 374 437 230 44 Core Remaining (%) 79 | 100 . . . 85 . 52 . Volleys Fired 69 | . 40 3 . 26 . . . Largest 2 | . 2 2 . 2 . . . Hottest 150 | . 60 78 . 150 . . . Shots Fired 144 | . 79 16 1 48 . . . Gun 144 | . 79 16 1 48 . . . Cannon . | . . . . . . . . Launcher . | . . . . . . . . Special . | . . . . . . . . Kinetic 95 | . 66 7 . 22 . . . Thermal 36 | . . 9 1 26 . . . Explosive . | . . . . . . . . Electromagnetic 13 | . 13 . . . . . . Robot Hit Streak 61 | . 33 40 41 61 . . . Robot Miss Streak 2 | . 2 . . 2 . . . Penetration Max . | . . . . . . . . Secondary Targets 2 | . . . . 2 . . . Max Gunslinging Chain 1 | . . . . 1 . . . Shots Hit Robots 123 | . 63 19 1 40 . . . Core Hits 50 | . 26 3 . 21 . . . Critical Kills . | . . . . . . . . Critical Parts Destroyed 1 | . . . . 1 . . . Critical Strikes 6 | . . 3 . 3 . . . Burn 4 | . . 2 . 2 . . . Destroy 1 | . . . . 1 . . . Smash 1 | . . 1 . . . . . Melee Attacks 72 | . . 58 . . 14 . . Impact 72 | . . 58 . . 14 . . Slashing . | . . . . . . . . Piercing . | . . . . . . . . Sneak Attacks 1 | . . 1 . . . . . Combat Hostiles . | . . . . . . . . Follow-up Attacks . | . . . . . . . . Damage Inflicted 2476 | . 877 856 17 726 . . . Guns 1472 | . 660 69 17 726 . . . Cannons . | . . . . . . . . Explosions 209 | . 209 . . . . . . Melee 787 | . . 787 . . . . . Ramming 8 | . 8 . . . . . . Kinetic 895 | . 541 . . 354 . . . Thermal 667 | . 209 69 17 372 . . . Explosive . | . . . . . . . . Electromagnetic 119 | . 119 . . . . . . Impact 787 | . . 787 . . . . . Slashing . | . . . . . . . . Piercing . | . . . . . . . . Highest Corruption 46 | . 2 46 30 . . . . Average Corruption 6 | . 1 7 27 . . . . Corruption Purged . | . . . . . . . . Corruption Blocked . | . . . . . . . . Effects 26 | . 5 19 2 . . . . Message Errors 5 | . 2 3 . . . . . Matter Fused 4 | . 2 2 . . . . . Heat Flow Errors 2 | . . 2 . . . . . Energy Discharges 7 | . . 7 . . . . . Data Loss (minor) 3 | . . 3 . . . . . Data Loss (major) 1 | . . 1 . . . . . Alerts 3 | . . 1 2 . . . . Weapon Failures 1 | . 1 . . . . . . Overload Shots 1 | . . . . 1 . . . Overflow Damage 146 | . . 146 . . . . . Projectiles . | . . . . . . . . Explosions . | . . . . . . . . Melee 146 | . . 146 . . . . . Knockbacks 3 | . 1 2 . . . . . Impact 3 | . 1 2 . . . . . Kinetic . | . . . . . . . . Secondary . | . . . . . . . . Self-Inflicted Damage 43 | . 43 . . . . . . Shots 1 | . 1 . . . . . . Rammed 1 | . 1 . . . . . . Targets Rammed 1 | . 1 . . . . . . Kicked . | . . . . . . . . Crushed . | . . . . . . . . Highest Temperature 193 | . 19 62 193 40 . . . Average Temperature 37 | . 6 37 120 26 . . . Received Heat Transfer 922 | . 270 84 . 388 111 60 9 Siege Activations . | . . . . . . . . Martial Activations . | . . . . . . . . Shielding Activations . | . . . . . . . . Robots Disrupted . | . . . . . . . . Combat Hostiles . | . . . . . . . . Robots Corrupted 4 | . . 4 . . . . . Combat Hostiles 4 | . . 4 . . . . . Parts Fried 4 | . . 3 . 1 . . . Impact Corruptions 8 | . . 8 . . . . . Robots Melted . | . . . . . . . . Combat Hostiles . | . . . . . . . . Parts Melted 7 | . . . . 7 . . . Heat Transferred 1210 | . 200 296 28 686 . . . Parts Sabotaged . | . . . . . . . . Parts Stolen . | . . . . . . . . Parts Stripped . | . . . . . . . . Power Chain Reactions 2 | . 2 . . . . . . Alert | -11 -10 -10 -8 -8 -6 -6 -5 ------- Run | Yrd Mat Sub Rec Scr Fac Ext Fac Maximum Alert Level 2 | . 1 . 2 . . . . Low Security (%) 83 | 100 98 . 10 . 100 100 100 Level 1 8 | . 1 . 44 . . . . Level 2 7 | . . . 44 . . . . Level 3 . | . . . . . . . . Level 4 . | . . . . . . . . Level 5 . | . . . . . . . . High Security . | . . . . . . . . Max Security . | . . . . . . . . Peak Influence 548 | . 202 . 548 . 42 . 45 Initial 15 | . . . 15 . . . . Average 125 | . 109 . 375 . 10 . 3 Influence Increases 1292 | . 322 245 593 . 87 . 45 Destroy 0b10 Robot/C 420 | . 180 140 100 . . . . Destroy 0b10 Robot/NC 5 | . 5 . . . . . . Destroy Leader 60 | . 50 10 . . . . . Allied During Kill 107 | . . 50 57 . . . . Select Force Hacks 60 | . 60 . . . . . . Disable Machine 15 | . . . . . 15 . . Destroy Structure 24 | . 12 . . . 12 . . Partial Spotted 15 | . . . . . 15 . . Lose Combat Pursuer 150 | . 15 45 . . 45 . 45 Miscellaneous 436 | . . . 436 . . . . Influence Decreases 1247 | . 292 243 127 498 87 . . Entered New Map 530 | . . 15 17 498 . . . Time Decay 686 | . 292 208 110 . 76 . . Lost Part 11 | . . . . . 11 . . Lost Ally 20 | . . 20 . . . . . Squads Dispatched 8 | . 2 . 3 . 2 1 . Investigation 6 | . 2 . 3 . 1 . . Extermination . | . . . . . . . . Reinforcement 2 | . . . . . 1 1 . Assault . | . . . . . . . . Garrison . | . . . . . . . . Intercept . | . . . . . . . . Searches Triggered . | . . . . . . . . Construction Impeded . | . . . . . . . . Haulers Reinforced . | . . . . . . . . Active Scanning Responses . | . . . . . . . . Cargo Convoy Interrupts . | . . . . . . . . Stealth | -11 -10 -10 -8 -8 -6 -6 -5 --------- Run | Yrd Mat Sub Rec Scr Fac Ext Fac Distress Signals 2 | . 1 . . . . 1 . Communications Jammed . | . . . . . . . . Distress Signals . | . . . . . . . . Times Spotted 84 | . 24 24 2 16 9 4 5 Peak Tracking Total 11 | . 5 6 3 11 4 4 5 Tactical Retreats 9 | . 1 2 . 2 3 . 1 Traps | -11 -10 -10 -8 -8 -6 -6 -5 ------- Run | Yrd Mat Sub Rec Scr Fac Ext Fac Traps Triggered 5 | . 2 2 . . 1 . . Indirectly . | . . . . . . . . Trap Hack Attempts . | . . . . . . . . Triggered . | . . . . . . . . Disarmed . | . . . . . . . . Reprogrammed . | . . . . . . . . Reused . | . . . . . . . . Traps Extracted . | . . . . . . . . Installed . | . . . . . . . . Triggered . | . . . . . . . . Machines | -11 -10 -10 -8 -8 -6 -6 -5 ---------- Run | Yrd Mat Sub Rec Scr Fac Ext Fac Machines Disabled 9 | . . 1 . 7 1 . . Max in Single Turn 1 | . . 1 . . 1 . . Energy Cycler 1 | . . . . . . 1 . Machines Repaired . | . . . . . . . . Machines Dismantled . | . . . . . . . . Machines Sabotaged . | . . . . . . . . Overloaded Fab Kills . | . . . . . . . . Hacking | -11 -10 -10 -8 -8 -6 -6 -5 --------- Run | Yrd Mat Sub Rec Scr Fac Ext Fac Machines Accessed 7 | . 2 . . 4 1 . . Terminals 1 | . . . . . 1 . . Fabricators . | . . . . . . . . Repair Stations . | . . . . . . . . Recycling Units 2 | . 2 . . . . . . Scanalyzers . | . . . . . . . . Garrison Access . | . . . . . . . . Total Hacks 19 | . 3 . . 15 1 . . Successful 18 | . 2 . . 15 1 . . Failed 1 | . 1 . . . . . . Catastrophic . | . . . . . . . . Database Lockouts . | . . . . . . . . Manual 39 | . 39 . . . . . . Terminals 1 | . . . . . 1 . . Fabricators . | . . . . . . . . Repair Stations . | . . . . . . . . Recycling Units 3 | . 3 . . . . . . Scanalyzers . | . . . . . . . . Garrison Access . | . . . . . . . . Terminal Hacks 16 | . . . . 15 1 . . Record 11 | . . . . 11 . . . Robot Analysis 3 | . . . . 3 . . . Open Door 1 | . . . . . 1 . . Proto ID Catalog 1 | . . . . 1 . . . Fabricator Hacks . | . . . . . . . . Repair Station Hacks . | . . . . . . . . Recycling Unit Hacks . | . . . . . . . . Scanalyzer . | . . . . . . . . Garrison Access Hacks . | . . . . . . . . Unauthorized Hacks 2 | . 2 . . . . . . Terminals . | . . . . . . . . Fabricators . | . . . . . . . . Repair Stations . | . . . . . . . . Recycling Units 2 | . 2 . . . . . . Tunnel 2 | . 2 . . . . . . Scanalyzers . | . . . . . . . . Garrison Access . | . . . . . . . . Data Cores Recovered . | . . . . . . . . Used . | . . . . . . . . Hacking Detections . | . . . . . . . . Full Trace Events . | . . . . . . . . Feedback Events . | . . . . . . . . Feedback Blocked . | . . . . . . . . Robot Schematics Acquired . | . . . . . . . . Robots Built . | . . . . . . . . Authchips . | . . . . . . . . Time . | . . . . . . . . Total Robot Build Rating . | . . . . . . . . Part Schematics Acquired . | . . . . . . . . Parts Built . | . . . . . . . . Authchips . | . . . . . . . . Time . | . . . . . . . . Total Part Build Rating . | . . . . . . . . Part Studies Acquired . | . . . . . . . . Parts Repaired . | . . . . . . . . Time . | . . . . . . . . Parts Recycled . | . . . . . . . . Recycled Matter . | . . . . . . . . Retrieved Matter . | . . . . . . . . Retrieved Components . | . . . . . . . . Parts Scanalyzed . | . . . . . . . . Part Schematics Acquired . | . . . . . . . . Parts Damaged . | . . . . . . . . Bothacking | -11 -10 -10 -8 -8 -6 -6 -5 ------------ Run | Yrd Mat Sub Rec Scr Fac Ext Fac Used RIF Installer . | . . . . . . . . Robots Hacked . | . . . . . . . . Non-combat . | . . . . . . . . Combat . | . . . . . . . . Robot Hacks Applied . | . . . . . . . . Relay Couplers Released . | . . . . . . . . Fabnet Peak Effective % . | . . . . . . . . Robots Rewired 6 | . . . 6 . . . . Allies Hacked . | . . . . . . . . Hacks Repelled . | . . . . . . . . Allies | -11 -10 -10 -8 -8 -6 -6 -5 -------- Run | Yrd Mat Sub Rec Scr Fac Ext Fac Total Allies 19 | . . 12 6 1 . . . Largest Group 15 | . . 11 15 15 . . . Highest-Rated Group 697 | . . 211 292 697 . . . Highest-Rated Ally 464 | . . 28 34 464 . . . Total Orders . | . . . . . . . . Ally Attacks 133 | . . 37 13 83 . . . Total Damage 3777 | . . 644 232 2901 . . . Kills 20 | . . 5 5 10 . . . Allies Corrupted . | . . . . . . . . Allies Melted . | . . . . . . . . X0-1V1 Amusement Gains 32 | . 4 13 . . 15 . . Average Entertainment 5 | . 8 5 . 5 9 9 5 Good Acts 68 | . . 36 16 1 7 5 3 Bad Acts 95 | . 1 72 21 . 1 . . Intel | -11 -10 -10 -8 -8 -6 -6 -5 ------- Run | Yrd Mat Sub Rec Scr Fac Ext Fac Active Infowar (turns) 841 | . 6 63 . 399 243 55 75 Optics 69 | . 6 63 . . . . . T.N.C. 772 | . . . . 399 243 55 75 Robot Analysis Total 3 | . . . . 3 . . . Derelict Logs Recovered 1 | . . 1 . . . . . Drone Launches . | . . . . . . . . Drone Recoveries . | . . . . . . . . Exploration | -11 -10 -10 -8 -8 -6 -6 -5 ------------- Run | Yrd Mat Sub Rec Scr Fac Ext Fac Turns Passed 3195 | 29 660 1230 232 671 243 55 75 Spaces Moved 4421 | 36 659 1888 125 1080 402 100 131 Core 1874 | 32 659 1183 . . . . . Treads . | . . . . . . . . Legs . | . . . . . . . . Wheels 4 | 4 . . . . . . . Hover . | . . . . . . . . Flight 2543 | . . 705 125 1080 402 100 131 Fastest Speed 44 | 50 50 45 49 49 44 55 55 Average Speed 50 | 53 50 50 49 49 49 55 55 Slowest Speed 125 | 80 100 125 49 49 55 55 55 Overloaded Moves . | . . . . . . . . Propulsion Burnouts . | . . . . . . . . Robots Hopped 13 | . . 1 . 4 6 . 2 Potential Cave-ins . | . . . . . . . . Cave-ins Triggered . | . . . . . . . . Exploration Rate (%) 42 | 3 99 96 24 73 8 28 6 Regions Visited 7 Branch Regions 4 Pre-discovered Areas 2 | . 2 . . . . . . Known Exits Taken 6 | . 1 1 1 1 1 1 . Unknown Exits Taken 1 | 1 . . . . . . . Scrap Searched 6 | . . 3 . 3 . . . Spaces Dug 23 | . . 12 . . 11 . . Terrain Destroyed 35 | . 12 12 . . 11 . . Melee 23 | . . 12 . . 11 . . Projectile . | . . . . . . . . AOE 12 | . 12 . . . . . . Terrain Rammed . | . . . . . . . . Walls Destroyed . | . . . . . . . . Machines Disabled . | . . . . . . . . Actions | -11 -10 -10 -8 -8 -6 -6 -5 --------- Run | Yrd Mat Sub Rec Scr Fac Ext Fac Total 5117 | 42 914 2058 294 1170 409 99 131 Wait 385 | . 187 75 80 43 . . . Move 4390 | 35 658 1885 124 1073 389 99 127 Hop 11 | . . 1 . 2 6 . 2 Pick Up 7 | . 1 4 . 2 . . . Fast Attach 14 | 6 3 4 . . . . 1 Attach 1 | . . 1 . . . . . Detach 2 | 1 . 1 . . . . . Swap 9 | . 4 3 1 1 . . . Drop 12 | . 3 8 . . . . 1 Fire 69 | . 40 3 . 26 . . . Melee 72 | . . 58 . . 14 . . Ram 1 | . 1 . . . . . . Kick . | . . . . . . . . Crush . | . . . . . . . . Escape Stasis . | . . . . . . . . Rewire 82 | . . . 82 . . . . Trap . | . . . . . . . . Miscellaneous 62 | . 17 15 7 23 . . . Route ------- -11/Scrapyard -10/Materials (discovered 5 exits: *Mat x3 / *Min / *Sub) -10/Subcaves (discovered 2 exits: *Mat / *Rec) -8/Recycling (discovered 2 exits: Fac / *Scr) -8/Scraptown -6/Factory -6/Extension -5/Factory (discovered 1 exit: Fac) History --------- Turn | Location | Event 3 | -11/Scrapyard | Upgraded with Power slot (x1) 3 | -11/Scrapyard | Upgraded with Propulsion slot (x1) 3 | -11/Scrapyard | Upgraded with Utility slot (x1) 3 | -11/Scrapyard | Upgraded with Weapon slot (x1) 6 | -11/Scrapyard | Discovered new exit (range 15) 30 | -11/Scrapyard | Entered Materials 117 | -10/Materials | Discovered new exit (range 15) 235 | -10/Materials | Discovered new exit (range 6) 310 | -10/Materials | Build established: Mutant 346 | -10/Materials | Discovered new exit (range 10) 418 | -10/Materials | Discovered new exit (range 3) 424 | -10/Materials | Identified exit to Materials 459 | -10/Materials | Identified exit to Mines 511 | -10/Materials | Discovered new exit (range 10) 630 | -10/Materials | Derelicts attacked the area 677 | -10/Materials | Made a sacrifice at D.C.S.S. Altar Unit 677 | -10/Materials | Forcibly received Sfc. Transmogifier from X0-1V1 677 | -10/Materials | Reached level 2 677 | -10/Materials | Reached level 3 678 | -10/Materials | Core integrity fell below 50% 678 | -10/Materials | Upgraded with Utility slot (x2) 690 | -10/Materials | Identified exit to Subcaves 690 | -10/Materials | Entered Subcaves 692 | -10/Subcaves | Reached level 4 727 | -10/Subcaves | Visited triangular shrine 752 | -10/Subcaves | Found Prototype Device 752 | -10/Subcaves | Identified V3-11A's Pendant 757 | -10/Subcaves | Befriended Subdweller 817 | -10/Subcaves | Befriended Subdweller 867 | -10/Subcaves | Befriended Subdweller 872 | -10/Subcaves | Befriended Subdweller 897 | -10/Subcaves | Discovered new exit (range 7) 900 | -10/Subcaves | Identified exit to Materials 907 | -10/Subcaves | Befriended Subdweller 907 | -10/Subcaves | Befriended Subdweller 913 | -10/Subcaves | Shifting Twisted Machinery released Battle Rifle 913 | -10/Subcaves | X0-1V1 revealed exit location to -8/Materials 916 | -10/Subcaves | Shifting Twisted Machinery released Flamer 978 | -10/Subcaves | Shifting Twisted Machinery released Mak. Laser 978 | -10/Subcaves | Shifting Twisted Machinery released Enh. Flamer 1134 | -10/Subcaves | Visited 4L-MR0's lab 1144 | -10/Subcaves | X0-1V1 caused items to flee you 1185 | -10/Subcaves | Shifting Twisted Machinery released Mak. System Restoration Module 1202 | -10/Subcaves | Shifting Twisted Machinery released Sub. Beam Cannon 1211 | -10/Subcaves | Items stopped fleeing you 1306 | -10/Subcaves | Learned Materials machine intel 1434 | -10/Subcaves | X0-1V1 activates XOMVISION 1443 | -10/Subcaves | Discovered new exit (range 16) 1474 | -10/Subcaves | Core integrity restored by X0-1V1 (+67) 1481 | -10/Subcaves | X0-1V1 sent you into danger 1481 | -10/Subcaves | Reached level 5 1486 | -10/Subcaves | Befriended Subdweller 1486 | -10/Subcaves | Befriended Subdweller 1496 | -10/Subcaves | Befriended Subdweller 1496 | -10/Subcaves | Befriended Subdweller 1500 | -10/Subcaves | X0-1V1 mutated your Weapon slot to Power slot 1511 | -10/Subcaves | Befriended Subdweller 1514 | -10/Subcaves | Core integrity restored by X0-1V1 (+72) 1516 | -10/Subcaves | System corruption reached 10% 1516 | -10/Subcaves | X0-1V1 sent you into danger 1519 | -10/Subcaves | A swath of the cavern ceiling suddenly collapsed 1519 | -10/Subcaves | X0-1V1 tapped a No Entrance sign 1528 | -10/Subcaves | X0-1V1 mutated your Power slot to Propulsion slot 1534 | -10/Subcaves | Upgraded with Weapon slot (x1) 1536 | -10/Subcaves | Upgraded with Weapon slot (x1) 1541 | -10/Subcaves | X0-1V1 rewrote FD-7SH(R) IFF filter 1546 | -10/Subcaves | Befriended Subdweller 1547 | -10/Subcaves | X0-1V1 activates XOMVISION 1552 | -10/Subcaves | Core integrity restored by X0-1V1 (+112) 1595 | -10/Subcaves | X0-1V1 rewrote LM-R5W(R) IFF filter 1612 | -10/Subcaves | X0-1V1 mutated your Utility slot to Weapon slot 1619 | -10/Subcaves | X0-1V1 rewrote DG-P48(R) IFF filter 1621 | -10/Subcaves | Befriended Subdweller 1639 | -10/Subcaves | X0-1V1 mutated your Weapon slot to Utility slot 1684 | -10/Subcaves | X0-1V1 activates XOMVISION 1739 | -10/Subcaves | System corruption reached 30% 1742 | -10/Subcaves | X0-1V1 rewrote 32-1HD(R) IFF filter 1746 | -10/Subcaves | Befriended Subdweller 1779 | -10/Subcaves | Ambushed by Subdweller buried in earth 1781 | -10/Subcaves | Befriended Subdweller 1784 | -10/Subcaves | X0-1V1 rewrote PV-GEG(R) IFF filter 1786 | -10/Subcaves | Befriended Subdweller 1786 | -10/Subcaves | X0-1V1 activates XOMVISION 1847 | -10/Subcaves | Identified exit to Recycling 1897 | -10/Subcaves | X0-1V1 rewrote 32-1HD(R) IFF filter 1901 | -10/Subcaves | Befriended Subdweller 1920 | -10/Subcaves | Entered Recycling 1920 | -8/Recycling | Accompanied by 9 allies 1922 | -8/Recycling | Reached level 6 1933 | -8/Recycling | Reached level 7 1936 | -8/Recycling | X0-1V1 vaporized surrounding terrain (radius 19) 1945 | -8/Recycling | X0-1V1 added 0b10 threat records associated with you (considerable) 1957 | -8/Recycling | X0-1V1 activates XOMVISION 1958 | -8/Recycling | X0-1V1 caused items to flee you 1973 | -8/Recycling | Identified exit to Factory 1973 | -8/Recycling | X0-1V1 revealed exit location to -6/Factory 1978 | -8/Recycling | X0-1V1 vaporized surrounding terrain (radius 21) 2005 | -8/Recycling | X0-1V1 put everyone to sleep 2022 | -8/Recycling | Identified exit to Scraptown 2022 | -8/Recycling | X0-1V1 revealed exit location to -8/Scraptown 2049 | -8/Recycling | X0-1V1 added 0b10 threat records associated with you (major) 2086 | -8/Recycling | Scanned before Scraplab entrance 2093 | -8/Recycling | Entered Scraplab 2095 | -8/Recycling | Items stopped fleeing you 2140 | -8/Recycling | X0-1V1 activates XOMVISION 2145 | -8/Recycling | X0-1V1 vaporized surrounding terrain (radius 19) 2152 | -8/Recycling | Entered Scraptown 2152 | -8/Scraptown | Accompanied by 15 allies 2154 | -8/Scraptown | Reached level 8 2178 | -8/Scraptown | Visited The Evicted 2205 | -8/Scraptown | Visited IN-MT5's Study 2223 | -8/Scraptown | Visited UFD Registry 2223 | -8/Scraptown | Registered with UFD as "Chainparser" 2228 | -8/Scraptown | Visited Cyclists 2232 | -8/Scraptown | Entered Cyclist Reading Room 2264 | -8/Scraptown | Visited A0-MCA Data Center 2272 | -8/Scraptown | Visited Junk Cannon Lab 2290 | -8/Scraptown | Visited Curators Association 2315 | -8/Scraptown | Visited Analyses Database 2328 | -8/Scraptown | Build established: Commander-Mutant 2346 | -8/Scraptown | Visited Sword Containment 2354 | -8/Scraptown | Visited LU-1G1's Boring Crew 2374 | -8/Scraptown | Visited Science Guys 2421 | -8/Scraptown | Visited Infowarlord's Domain 2477 | -8/Scraptown | Visited Red Mages 2501 | -8/Scraptown | Delivered V3-11A's Pendant to T0-NE2 in exchange for information 2547 | -8/Scraptown | X0-1V1 brought Wyrm Statue to life 2547 | -8/Scraptown | Attacked by Scraptown defenders 2624 | -8/Scraptown | Lost 3 allies 2707 | -8/Scraptown | Core integrity fell below 20% 2732 | -8/Scraptown | Destroyed Triborg 2790 | -8/Scraptown | Discovered exit to Factory (range 5) 2823 | -8/Scraptown | Entered Factory 2825 | -6/Factory | Reached level 9 2844 | -6/Factory | Build established: Mutant 2911 | -6/Factory | Core integrity fell below 50% 2922 | -6/Factory | Core integrity fell below 20% 2930 | -6/Factory | X0-1V1 activates XOMVISION 2987 | -6/Factory | Core integrity restored by X0-1V1 (+216) 3004 | -6/Factory | X0-1V1 downgraded hostiles (x1) 3061 | -6/Factory | Discovered new exit (range 10) 3065 | -6/Factory | Identified exit to Extension 3066 | -6/Factory | Entered Extension 3068 | -6/Extension | Reached level 10 3069 | -6/Extension | X0-1V1 destroyed Energy Cycler 3069 | -6/Extension | Energy Cycler disabled 3074 | -6/Extension | Rescued a captive Derelict 3074 | -6/Extension | Rescued a captive Derelict 3076 | -6/Extension | Rescued a captive Derelict 3078 | -6/Extension | Rescued a captive Derelict 3079 | -6/Extension | Rescued a captive Derelict 3081 | -6/Extension | X0-1V1 foreshadows a heat wave 3082 | -6/Extension | Rescued a captive Derelict 3084 | -6/Extension | Rescued a captive Derelict 3085 | -6/Extension | Rescued a captive Derelict 3085 | -6/Extension | Rescued a captive Derelict 3089 | -6/Extension | Rescued a captive Derelict 3090 | -6/Extension | Rescued a captive Derelict 3095 | -6/Extension | Rescued a captive Derelict 3099 | -6/Extension | Rescued a captive Derelict 3104 | -6/Extension | Spotted B-75 Beast 3108 | -6/Extension | Spotted B-75 Beast 3109 | -6/Extension | Rescued a captive Derelict 3111 | -6/Extension | Discovered new exit (range 16) 3120 | -6/Extension | Identified exit to Factory 3121 | -6/Extension | Entered Factory 3123 | -5/Factory | Reached level 11 3149 | -5/Factory | Identified exit to Factory 3149 | -5/Factory | X0-1V1 revealed exit location to -4/Factory 3155 | -5/Factory | Core integrity fell below 50% 3196 | -5/Factory | Self-destructed Last Messages --------------- 03149_ X0-1V1: "I guarantee there's even more fun over that way." 03149_ EXIT=REVEALED: FACTORY 03154_ Penetrated by Slug. 03157_ Slug penetrates Wall. 03161_ Penetrated by Slug. 03161_ Slug penetrates Wall. 03164_ Penetrated by Slug. 03167_ Melee accuracy returns to normal. 03172_ K-01 Serf pushes G-50 Soldier. 03173_ K-01 Serf cleans the Garrison Access. 03173_ K-01 Serf pushes G-50 Soldier. 03174_ K-01 Serf cleans the Garrison Access. 03174_ K-01 Serf pushes G-50 Soldier. 03175_ X0-1V1 causes your matter storage to temporarily balloon in size. (+600 matter capacity) 03176_ K-01 Serf pushes G-50 Soldier. 03178_ K-01 Serf cleans the Garrison Access. 03194_ Acquired Prototype Device. 03194_ Identified Prc. Energy Filter. 03195_ Dropped Prc. Energy Filter. Map ----- +----------------------------------------------------+ | ?????????????????????????????????????????????????? | | ?????????????????????????????????????????????????? | | ?????????????????????????????????????????????????? | | ?????????????????????????????????????????????????? | | ?????????????????????????????????????????????????? | | ?????????????????????????????????????????????????? | | ?????????????????????????????????????????????????? | | ?????????????????????????????????????????????????? | | ?????????????????????????????????????????????????? | | ?????????????????????????????????????????????????? | | ?????????????????????????????????????????????????? | | ?????????????????????????????????????????????????? | | ?????????????????????????????????????????????????? | | ????????????????????????#####???#????????????????? | | ????????????????????????# ??? #???????????????? | | ????????????????????????# "??" #???????????????? | | ????????????????????????# ""?" #???????????????? | | ????????????????????????# ""?" #???????????????? | | ????????????????????????# """" #???????????????? | | ????????????????????????# """" #???????????????? | | ????????????????????????# """" #???????????????? | | ????????????????????????# """" #???????????????? | | ????????????????????????# ################# | | ????????????????????????# # | | ????????????????????????# # | | ????????????????????????#@ + | | ????????????????????????# # | | ????????????????????????# # | | ????????????????????????# ################# | | ????????????????????????# " F" #???????????????? | | ????????????????????????# """" #???????????????? | | ????????????????????????# #???????????????? | | ????????????????????????##########???????????????? | | ?????????????????????????????????????????????????? | | ?????????????????????????????????????????????????? | | ?????????????????????????????????????????????????? | | ?????????????????????????????????????????????????? | | ?????????????????????????????????????????????????? | | ?????????????????????????????????????????????????? | | ?????????????????????????????????????????????????? | | ?????????????????????????????????????????????????? | | ?????????????????????????????????????????????????? | | ?????????????????????????????????????????????????? | | ?????????????????????????????????????????????????? | | ?????????????????????????????????????????????????? | | ?????????????????????????????????????????????????? | | ?????????????????????????????????????????????????? | | ?????????????????????????????????????????????????? | | ?????????????????????????????????????????????????? | | ?????????????????????????????????????????????????? | +----------------------------------------------------+ Best States ------------- Heat Dissipation 83 Energy Generation 49 Energy Capacity 1480 Matter Stores 657 Matter Capacity 900 Sight Range 22 Terrain Scan Density 10 Evasion (%) 61 Item Schematics ----------------- None Robot Schematics ------------------ None Fabricated ------------ Nothing Repaired ---------- Nothing Studied --------- None Alien Tech Used ----------------- None Achievements -------------- Statue Heist Challenges ------------ None RPGLIKE | -11 -10 -10 -8 -8 -6 -6 -5 --------- Run | Yrd Mat Sub Rec Scr Fac Ext Fac Levels Raised 10 | . 2 2 2 1 1 1 1 XP Earned 18347 | 3000 3975 3104 3368 825 1575 1000 1500 XP Spent 14775 | 2960 2500 3390 . 500 5425 . . Upgrades 52 | 10 3 7 . 1 31 . . Power Slot 1 | 1 . . . . . . . Propulsion Slot 1 | 1 . . . . . . . Utility Slot 3 | 1 2 . . . . . . Weapon Slot 3 | 1 . 2 . . . . . Core Integrity 31 | . . . . . 31 . . Heat Dissipation 6 | 3 . 3 . . . . . Mass Support 2 | 1 1 . . . . . . Inventory Capacity 2 | 1 . . . 1 . . . Ranged Accuracy 3 | 1 . 2 . . . . . Protomatter Created 548 | . 186 28 . 334 . . . Integrity Restored 1285 | . 335 333 143 474 . . . Core 1166 | . 298 333 100 435 . . . Parts 119 | . 37 . 43 39 . . . Protomatter Decayed 334 | . 52 10 40 170 . 62 . Game ------ Seed SuperchargedShiftPit Manual? 0 Play Time 00:37:37 Cumulative 704.7 hours Start 2026.08.26 @ 12:28:50 End 2026.08.26 @ 13:23:51 Sessions 1 Manual Loads 0 Difficulty Rogue Special Mode Winter2019/RPGLIKE Game No. 368 Rogue 214 Adventurer 154 Explorer 0 Win Type - Total 25 Types 4/7/5/3/2/1/0/1/1/1 Lore% 95 Gallery% 88 Achievement% 69 Wizard Run 0 Options --------- Layout 0 ASCII 0 Keyboard 0 Movement Numpad Keybinds 0 Fullscreen 2 Font 18/SmallcapsGlow Map View 76x50 Zoom Use 0% Tactical HUD 1 Map Filters NONE Filters NONE Steam 1 RUN: 7b750133-5463-4d7a-a2d1-13288516d738